bitfinex/quotes_ETHUSD_20250123
["timestamp","ask_amount","ask_price","bid_price","bid_amount"]
[1737594142243,0.9156,3252.7,3252.3,35.0]
[1737594142397,0.9156,3252.7,3252.6,0.02890159]
[1737594142585,0.9156,3252.7,3252.4,3.10202562]
[1737594142917,3.45855823,3252.8,3252.4,3.10202562]
[1737594143120,3.45855823,3252.8,3252.5,0.02890159]
[1737594143621,3.45855823,3252.8,3252.3,38.07472]
[1737594143922,3.45855823,3252.8,3252.3,41.17674562]
[1737594144094,3.45855823,3252.8,3252.4,0.02890159]
[1737594150724,3.45855823,3252.8,3252.7,3.07436]
[1737594150926,3.45855823,3253.3,3252.8,3.07422]
[1737594151106,3.45855823,3253.3,3253.0,3.98358]
[1737594151293,3.45855823,3253.3,3253.1,3.07398]
[1737594151494,3.45855823,3253.3,3253.2,3.10273979]
[1737594151715,3.45855823,3253.3,3253.2,0.02884979]
[1737594151988,3.45855823,3253.3,3253.2,3.10273979]
[1737594152236,3.45855823,3253.3,3253.2,38.10273979]
[1737594152445,3.07319,3254.0,3253.2,38.10273979]
[1737594152446,3.45855823,3254.0,3253.5,3.07356]
[1737594152643,3.45855823,3254.0,3253.7,0.9095]
[1737594153343,3.45855823,3254.0,3253.8,0.0280109]
[1737594155933,3.45855823,3254.0,3253.9,35.0]
[1737594156534,3.45855823,3254.0,3253.9,35.0280109]
[1737594156744,3.07245,3254.8,3254.0,3.07313]
[1737594156745,3.45855823,3254.3,3254.0,3.07313]
[1737594156942,3.45855823,3254.8,3254.3,3.07277]
[1737594157100,3.45855823,3254.8,3254.7,3.07247]
[1737594157295,3.45855823,3255.2,3254.9,3.07228]
[1737594157520,3.45855823,3255.2,3255.0,35.0]
[1737594157709,3.45855823,3255.2,3255.1,3.0721]
[1737594158237,3.45855823,3255.9,3255.5,3.07171]
[1737594158404,3.45855823,3255.9,3255.4,0.03071387]
[1737594158608,3.45855823,3255.9,3255.6,0.02733296]
[1737594158917,3.40855823,3255.9,3255.7,0.02733296]
[1737594159094,3.40855823,3255.9,3255.4,3.10252387]
[1737594159298,3.40855823,3255.9,3255.5,0.8513]
[1737594159696,3.07169,3255.6,3255.1,38.8513]
[1737594160098,3.40855823,3255.9,3255.2,0.03071737]
[1737594160298,3.40855823,3255.9,3255.4,3.07181]
[1737594160535,3.40855823,3255.9,3255.5,0.03071381]
[1737594161035,3.40855823,3255.9,3255.4,3.07181]
[1737594161329,3.40855823,3255.9,3255.5,0.33789489]
[1737594162491,3.40855823,3255.9,3255.5,3.40955489]
[1737594162718,3.40855823,3255.9,3255.5,0.307181]
[1737594163129,6.47970823,3256.1,3255.5,0.307181]
[1737594163333,7.38379823,3256.5,3255.7,3.92282]
[1737594163534,7.38379823,3256.5,3255.8,0.03071014]
[1737594163721,3.07091,3256.4,3255.9,35.0]
[1737594163899,3.02091,3256.4,3255.9,35.0]
[1737594164420,3.07097,3256.3,3255.9,35.0]
[1737594164602,3.07106,3256.2,3255.9,35.0]
[1737594166122,7.38373823,3256.5,3255.9,35.0]
[1737594166330,3.07093,3256.4,3255.9,35.0]
[1737594166648,3.02093,3256.4,3255.9,35.0]
[1737594166836,3.02093,3256.4,3255.7,0.8513]
[1737594167005,3.02093,3256.4,3255.7,1.550761]
[1737594167206,3.02093,3256.4,3255.8,35.0]
[1737594167713,4.31295823,3256.5,3255.8,35.0]
[1737594167957,3.07117,3256.1,3255.7,0.699461]
[1737594168118,3.02117,3256.1,3255.5,3.0]
[1737594168318,3.02117,3256.1,3255.6,35.0]
[1737594169101,3.07141,3255.9,3255.6,35.0]
[1737594169453,3.02184,3255.4,3254.8,3.93565]
[1737594169755,3.02184,3255.4,3254.8,0.8633]
[1737594169965,3.02184,3255.4,3254.9,35.0]
[1737594170249,3.07192,3255.3,3254.9,38.10202562]
[1737594170921,3.07172,3255.5,3254.9,38.10202562]
[1737594171098,3.07172,3255.5,3254.9,41.17430562]
[1737594171302,3.07172,3255.5,3255.0,0.03071837]
[1737594171500,3.07172,3255.5,3254.9,41.17430562]
[1737594171736,3.40855823,3255.8,3255.0,3.62203368]
[1737594171910,10.60855823,3256.1,3255.5,3.0717]
[1737594172110,10.60855823,3256.1,3255.6,0.0307126]
[1737594172659,3.40855823,3256.1,3255.8,3.93468]
[1737594172871,0.15449949,3256.6,3255.8,0.8940109]
[1737594173007,3.40855823,3256.7,3255.9,0.38940109]
[1737594173364,3.40855823,3256.7,3256.2,3.07103]
[1737594173568,3.40855823,3256.7,3256.0,3.1018666]
[1737594173855,3.40855823,3256.7,3256.0,3.07116]
[1737594174155,3.0707,3256.6,3256.0,3.07116]
[1737594174458,3.07076,3256.6,3256.0,0.73952711]
[1737594175256,3.07087,3256.4,3256.0,0.73952711]
[1737594175489,3.07087,3256.4,3255.8,0.8633]
[1737594175949,3.07097,3256.3,3255.8,0.8633]
[1737594176159,3.07097,3256.3,3255.6,3.07162]
[1737594176160,3.0712,3256.1,3255.4,0.8633]
[1737594176313,3.0712,3256.1,3255.4,0.272]
[1737594176518,0.8823,3256.2,3255.4,0.272]
[1737594176519,3.07147,3255.8,3255.4,0.272]
[1737594176715,3.95404,3255.5,3254.8,0.8633]
[1737594177143,3.95404,3255.5,3254.8,3.8633]
[1737594178354,3.07189,3255.4,3254.8,3.8633]
[1737594178555,3.07201,3255.2,3254.6,3.0]
[1737594178720,3.07201,3255.2,3254.7,0.634465]
[1737594179999,3.07189,3255.4,3254.7,0.634465]
[1737594180174,3.07189,3255.4,3254.8,3.03072234]
[1737594180395,3.07189,3255.4,3254.8,3.0]
[1737594180701,6.48047823,3255.3,3254.7,0.634465]
[1737594180867,3.40855823,3255.3,3254.2,3.07292]
[1737594181218,3.0724,3254.8,3254.2,0.8633]
[1737594181415,3.0724,3254.8,3254.2,3.8633]
[1737594181716,3.0722,3255.0,3254.3,0.693633]
[1737594181865,3.07203,3255.2,3254.5,3.0726]
[1737594182767,3.07211,3255.1,3254.5,3.0726]
[1737594183161,3.07203,3255.2,3254.5,3.0726]
[1737594183360,3.07203,3255.2,3254.3,3.766473]
[1737594183667,3.07222,3255.0,3254.3,3.766473]
[1737594183979,6.48077823,3255.0,3254.3,3.79719695]
[1737594184163,6.48077823,3255.0,3254.3,0.693633]
[1737594184376,3.07246,3254.8,3254.2,0.8633]
[1737594184672,3.07246,3254.8,3254.2,3.93622]
[1737594185291,0.891,3254.9,3254.2,3.93622]
[1737594185938,3.07252,3254.7,3254.2,0.8633]
[1737594186080,3.07252,3254.7,3254.0,3.07313]
[1737594186281,3.07252,3254.7,3254.0,3.407643]
[1737594186589,3.07257,3254.6,3254.0,3.407643]
[1737594188730,3.40855823,3254.7,3254.0,3.407643]
[1737594188950,3.40855823,3254.7,3254.1,0.03072679]
[1737594189257,3.40855823,3254.7,3254.4,3.07267]
[1737594189423,11.23229845,3255.7,3254.5,3.74172252]
[1737594189626,3.40855823,3255.7,3255.2,3.90823]
[1737594189954,3.40855823,3255.7,3255.3,0.03071599]
[1737594190163,3.40855823,3255.7,3255.2,0.8363]
[1737594190311,3.40855823,3255.7,3255.2,3.93901549]
[1737594190506,3.40855823,3255.7,3255.3,0.39390155]
[1737594191049,3.40855823,3255.7,3255.3,3.49650705]
[1737594191250,3.40855823,3255.7,3255.3,0.42461705]
[1737594191548,3.40855823,3255.7,3255.3,0.39390155]
[1737594191931,3.40855823,3255.7,3255.3,3.49652704]
[1737594192109,3.40855823,3255.7,3255.4,0.4332827]
[1737594192306,3.40855823,3255.7,3255.2,0.8363]
[1737594194238,3.40855823,3255.7,3255.2,3.9083]
[1737594194856,3.40855823,3255.7,3255.2,0.8363]
[1737594195361,3.40855823,3255.7,3255.2,3.90829]
[1737594196465,3.40855823,3255.7,3255.3,0.03071552]
[1737594196671,3.40855823,3255.7,3255.3,0.39390055]
[1737594198574,3.40855823,3255.7,3254.8,0.8363]
[1737594198575,3.07179,3255.5,3254.8,0.8363]
[1737594198782,3.07202,3255.2,3254.4,4.216287]
[1737594198928,3.07212,3255.1,3254.4,4.216287]
[1737594199135,3.07212,3255.1,3254.5,0.4488287]
[1737594200074,3.07202,3255.2,3254.5,0.47955028]
[1737594200267,3.96283,3255.4,3254.5,0.47955028]
[1737594200587,3.07206,3255.2,3254.6,3.07249]
[1737594200789,3.07206,3255.2,3254.7,0.03072159]
[1737594201490,3.07206,3255.2,3254.7,0.38592562]
[1737594202410,3.96283,3255.4,3254.7,0.38592562]
[1737594202611,3.96283,3255.4,3254.7,3.45833562]
[1737594202778,3.96283,3255.4,3254.8,3.07238]
[1737594202978,3.96283,3255.4,3254.8,3.10309965]
[1737594203301,3.96283,3255.4,3254.8,3.75617902]
[1737594204291,3.07183,3255.4,3254.8,3.75617902]
[1737594204489,3.07175,3255.5,3254.8,3.75617902]
[1737594205216,3.07175,3255.5,3254.9,3.93948]
[1737594205375,3.07175,3255.5,3255.0,35.0]
[1737594205780,3.95375,3255.7,3255.0,40.69431123]
[1737594205975,3.07135,3255.9,3255.2,3.07199]
[1737594206205,3.07154,3255.7,3255.0,5.69425123]
[1737594206406,3.07154,3255.7,3255.0,3.0721]
[1737594206678,3.07146,3255.8,3255.3,35.0]
[1737594206882,4.26595,3256.0,3255.4,0.03071612]
[1737594207206,4.26595,3256.0,3255.3,35.0]
[1737594207403,7.33727,3256.0,3255.4,0.03071484]
[1737594207603,3.07137,3255.9,3255.3,38.0719]
[1737594207923,3.07137,3255.9,3255.3,38.07097993]
[1737594208123,4.26595,3256.0,3255.4,0.03071485]
[1737594208309,4.26595,3256.0,3255.3,41.14285993]
[1737594208813,7.33729,3256.0,3255.3,41.14285993]
[1737594209230,3.07139,3255.9,3255.3,41.14285993]
[1737594209736,3.07165,3255.6,3255.3,35.0]
[1737594211226,3.95401,3255.4,3254.6,3.07256]
[1737594211427,3.07197,3255.3,3254.6,3.93976]
[1737594211790,3.07197,3255.3,3254.7,35.0]
[1737594212121,3.95401,3255.4,3254.7,41.17442562]
[1737594212421,3.95401,3255.4,3254.8,3.07236]
[1737594212588,3.95401,3255.4,3254.8,3.10308009]
[1737594212990,3.95401,3255.4,3254.9,35.0]
[1737594215695,3.07193,3255.3,3254.7,3.07241]
[1737594216390,3.91906,3255.7,3255.0,3.07218]
[1737594216589,3.07137,3255.9,3255.1,0.8920191]
[1737594216825,3.07156,3255.7,3255.1,0.8613]
[1737594217030,3.07156,3255.7,3255.2,35.0]
[1737594217346,3.07163,3255.6,3255.2,35.0]
[1737594217697,3.07179,3255.5,3255.2,35.0]
[1737594218144,3.07191,3255.3,3255.2,35.0]
[1737594220851,3.07191,3255.3,3254.8,0.8613]
[1737594220990,3.07178,3255.5,3254.8,4.66500713]
[1737594221418,3.07178,3255.5,3254.9,35.0]
[1737594222638,3.07183,3255.4,3254.9,35.0]
[1737594223291,3.91906,3255.7,3254.9,35.0]
[1737594223497,3.07181,3255.5,3254.9,35.0]
[1737594223711,3.07181,3255.5,3254.9,38.0234323]
[1737594224004,3.07181,3255.5,3254.9,35.0]
[1737594224005,3.07191,3255.3,3254.9,35.0]
[1737594224868,3.07182,3255.4,3254.9,35.0]
[1737594228470,3.07191,3255.3,3254.9,35.0]
[1737594231472,3.07191,3255.3,3254.7,3.07247]
[1737594231629,3.07191,3255.3,3254.7,3.773112]
[1737594232060,3.07191,3255.3,3254.8,35.0]
[1737594233069,3.07211,3255.1,3254.8,35.0]
[1737594233272,0.8475,3255.0,3254.8,35.0]
[1737594233427,3.07244,3254.8,3254.3,0.8613]
[1737594233629,3.07244,3254.8,3254.1,3.93433]
[1737594233828,3.07244,3254.8,3254.2,38.700746]
[1737594236358,3.07244,3254.8,3254.2,41.773676]
[1737594236964,3.07244,3254.8,3254.2,38.700746]
[1737594237466,3.07258,3254.6,3254.2,35.0]
[1737594237629,0.8475,3255.0,3254.2,35.0]
[1737594237630,3.0728,3254.4,3254.2,35.0]
[1737594237828,3.07278,3254.4,3254.2,35.0]
[1737594238462,3.07285,3254.3,3254.2,35.0]
[1737594240312,0.8475,3254.5,3254.2,35.0]
[1737594240512,3.07278,3254.4,3254.2,35.0]
[1737594240898,3.07278,3254.4,3253.8,3.93456]
[1737594241210,3.07278,3254.4,3253.8,4.662454]
[1737594241419,3.07278,3254.4,3253.9,35.0]
[1737594241914,3.07252,3254.7,3253.9,38.07321]
[1737594242115,3.07271,3254.5,3253.9,38.07321]
[1737594242277,3.07271,3254.5,3253.9,35.0]
[1737594242476,3.07271,3254.5,3253.9,37.9961653]
[1737594243875,0.9076,3254.8,3253.9,37.9961653]
[1737594244071,3.07298,3254.2,3253.9,35.0]
[1737594244330,3.07294,3254.3,3253.9,35.0]
[1737594244979,3.98054,3254.3,3253.9,35.0]
[1737594245317,7.05349,3254.3,3253.9,35.0]
[1737594245519,3.98054,3254.3,3253.9,35.0]
[1737594245724,3.0731,3254.1,3253.9,35.0]
[1737594247679,3.98047,3254.3,3253.9,35.0]
[1737594248479,3.07303,3254.2,3253.9,35.0]
[1737594251128,3.07304,3254.1,3253.9,35.0]
[1737594252532,3.07304,3254.1,3253.4,3.07369]
[1737594252533,0.705351,3254.1,3253.4,0.8347]
[1737594252831,6.1459,3254.2,3253.4,0.8347]
[1737594253026,0.9076,3254.3,3253.5,35.0]
[1737594253232,3.07314,3254.0,3253.5,35.0]
[1737594253379,6.14637,3254.0,3253.5,35.0]
[1737594253581,3.0733,3253.9,3253.5,35.0]
[1737594253780,3.07314,3254.0,3253.5,35.0]
[1737594253996,3.07341,3253.8,3253.5,35.0]
[1737594254390,3.07351,3253.6,3253.5,35.0]
[1737594255951,3.07351,3253.6,3253.5,0.02686918]
[1737594256307,3.07379,3253.4,3252.9,0.8347]
[1737594256505,3.07405,3253.1,3252.7,0.8347]
[1737594256803,3.07386,3253.3,3252.7,0.8347]
[1737594257254,3.07391,3253.2,3252.7,0.8347]
[1737594257541,3.07386,3253.3,3252.8,35.0]
[1737594257760,3.07386,3253.3,3252.9,3.10202562]
[1737594258377,3.07386,3253.3,3252.7,0.8347]
[1737594258378,3.07386,3253.3,3253.0,35.0]
[1737594259866,8.0636,3253.7,3253.0,35.0]
[1737594260075,8.0636,3253.7,3252.6,5.87469812]
[1737594260076,7.2,3253.7,3253.4,3.07369]
[1737594260362,7.2,3253.7,3253.2,3.07382]
[1737594260585,7.2,3253.7,3253.5,35.0]
[1737594261241,5.24,3253.7,3253.5,35.0]
[1737594262766,8.31344,3253.7,3253.5,35.0]
[1737594263740,5.24,3253.7,3253.5,35.0]
[1737594265228,5.24,3254.0,3253.6,0.7876]
[1737594265549,5.24,3254.2,3253.6,3.86109]
[1737594267388,5.24,3254.2,3253.9,0.7656]
[1737594267548,5.24,3254.2,3253.9,0.79632938]
[1737594267872,5.24,3254.2,3253.9,3.8388]
[1737594268025,5.24,3254.2,3253.9,1.456806]
[1737594268484,5.24,3254.2,3253.5,0.7656]
[1737594268485,8.313,3254.2,3253.5,0.7656]
[1737594268674,8.31298,3254.2,3253.5,0.7656]
[1737594268878,3.0732,3254.0,3253.5,0.7656]
[1737594269084,3.07329,3253.9,3253.5,0.7656]
[1737594269373,3.07329,3253.9,3253.5,35.7656]
[1737594269556,3.0732,3254.0,3253.5,35.7656]
[1737594270241,3.07351,3253.6,3253.2,0.7656]
[1737594270382,0.8092,3253.8,3253.2,0.7656]
[1737594270706,3.07356,3253.6,3253.3,35.0]
[1737594270903,0.8092,3253.8,3253.3,35.0]
[1737594271120,3.07361,3253.5,3253.3,35.0]
[1737594271422,8.3137,3253.4,3253.3,35.0]
[1737594271929,5.24,3253.4,3253.3,35.0]
[1737594272479,8.3137,3253.4,3253.3,35.0]
[1737594272706,9.1229,3253.4,3253.3,35.0]
[1737594273228,5.24,3253.4,3253.3,35.0]
[1737594274108,5.24,3254.0,3253.3,41.99422562]
[1737594274319,5.24,3254.0,3253.5,3.07354]
[1737594275698,5.24,3254.0,3253.6,0.03073254]
[1737594275898,5.24,3254.0,3253.9,3.07323]
[1737594277116,5.24,3254.0,3253.9,3.89163]
[1737594277312,5.24,3254.0,3253.9,4.51366368]
[1737594277514,5.24,3254.0,3253.9,39.51366368]
[1737594277906,8.31248,3254.7,3254.0,3.07306]
[1737594278247,5.24,3254.7,3254.1,3.10376633]
[1737594278647,5.24,3254.7,3254.1,3.07304]
[1737594278943,5.24,3254.7,3253.9,39.51366368]
[1737594278944,8.31251,3254.7,3253.9,39.51366368]
[1737594279150,3.07258,3254.6,3254.0,3.10202562]
[1737594280055,3.07258,3254.6,3254.0,6.17514562]
[1737594280208,3.07258,3254.6,3254.0,3.10202562]
[1737594280917,0.8126,3254.5,3253.6,0.8184]
[1737594281153,3.07315,3254.0,3253.6,0.8184]
[1737594281682,3.07315,3254.0,3253.4,35.8184]
[1737594281984,8.31315,3254.0,3253.4,35.8184]
[1737594282280,3.07327,3253.9,3253.4,38.92042562]
[1737594282458,3.07332,3253.8,3253.4,35.0]
[1737594282661,3.07357,3253.6,3253.4,35.0]
[1737594282980,3.07361,3253.5,3253.4,35.0]
[1737594287892,8.31361,3253.5,3253.4,35.0]
[1737594290057,8.31361,3253.5,3252.9,2.02701271]
[1737594290273,8.31361,3253.5,3252.9,2.53713998]
[1737594290590,8.31361,3253.5,3253.0,35.0]
[1737594290944,3.07371,3253.4,3253.0,35.0]
[1737594292390,5.24,3253.5,3253.0,35.0]
[1737594292714,3.07392,3253.2,3253.0,35.0]
[1737594293683,0.8126,3253.4,3253.0,35.0]
[1737594294022,3.07381,3253.3,3253.0,35.0]
[1737594294823,3.8863,3253.4,3253.0,35.0]
[1737594295225,5.24,3253.5,3253.1,0.8184]
[1737594295523,8.31361,3253.5,3253.1,0.8184]
[1737594295726,5.24,3253.5,3253.1,0.8184]
[1737594296023,3.07371,3253.4,3253.2,35.0]
[1737594296688,8.3138,3253.3,3253.2,35.0]
[1737594299897,8.3138,3253.3,3252.9,1.20861271]
[1737594300349,8.3138,3253.3,3253.0,35.0]
[1737594300549,3.07392,3253.2,3253.0,35.0]
[1737594300960,5.24,3253.3,3253.0,35.0]
[1737594301105,5.24,3253.3,3253.0,38.10202562]
[1737594302333,5.24,3253.3,3253.0,35.0]
[1737594304913,8.31381,3253.3,3253.0,35.0]
[1737594313032,5.24,3253.3,3253.0,35.0]
[1737594317655,8.31376,3253.4,3253.0,35.0]
[1737594318082,5.24,3253.4,3253.1,3.86227]
[1737594318369,5.24,3253.4,3253.2,3.10202562]
[1737594318573,5.24,3253.4,3253.1,3.86227]
[1737594318803,5.24,3253.4,3253.2,35.0]
[1737594319359,3.0738,3253.3,3253.2,35.0]
[1737594319700,3.0738,3253.3,3252.9,1.20861271]
[1737594320079,3.0738,3253.3,3253.0,35.0]
[1737594321402,5.24,3253.4,3253.0,35.0]
[1737594322204,3.0738,3253.3,3253.0,35.0]
[1737594322608,8.31372,3253.4,3253.0,35.0]
[1737594323905,5.24,3253.4,3253.0,41.17602562]
[1737594324611,5.24,3253.4,3253.2,0.8292]
[1737594324990,5.24,3253.4,3253.2,3.90308]
[1737594325194,5.24,3253.4,3253.3,35.0]
[1737594325578,3.07424,3252.9,3252.0,0.8292]
[1737594325811,8.31449,3252.6,3252.1,0.390425]
[1737594326012,3.07456,3252.5,3252.1,3.58344015]
[1737594326182,3.07456,3252.5,3252.2,35.0]
[1737594326518,5.24,3252.6,3252.2,35.0]
[1737594326673,5.24,3252.6,3252.5,3.90375]
[1737594326876,5.24,3252.6,3252.5,4.60466546]
[1737594327300,5.24,3252.6,3252.5,39.60466546]
[1737594329479,5.24,3253.3,3252.9,0.8292]
[1737594329699,5.24,3253.4,3252.9,0.8292]
[1737594330623,8.31371,3253.4,3252.9,0.8292]
[1737594331326,8.31371,3253.4,3252.9,1.22261597]
[1737594332184,3.07381,3253.3,3252.9,0.8292]
[1737594332389,8.31371,3253.4,3253.0,0.08371803]
[1737594333023,3.0738,3253.3,3253.1,35.0]
[1737594333412,8.3138,3253.3,3253.2,0.08396657]
[1737594334028,5.24,3253.3,3253.2,0.08396657]
[1737594334228,5.24,3253.4,3253.2,2.71668541]
[1737594336329,3.8798,3253.3,3253.2,0.08396657]
[1737594336626,3.8798,3253.3,3252.6,6.8541]
[1737594336821,5.24,3253.4,3253.2,0.86073702]
[1737594337026,5.24,3253.4,3253.2,0.7797]
[1737594337188,5.24,3253.4,3253.3,0.08103702]
[1737594337726,5.24,3253.4,3253.2,0.7797]
[1737594338038,5.24,3253.4,3253.3,0.08103702]
[1737594338537,8.31348,3253.7,3253.3,0.08103702]
[1737594338697,8.31348,3253.7,3253.2,0.7797]
[1737594339033,8.31348,3253.7,3253.3,0.08103702]
[1737594339354,8.31348,3253.7,3253.2,0.7797]
[1737594339628,8.31348,3253.7,3253.4,0.08103702]
[1737594339831,3.07354,3253.6,3253.2,0.7797]
[1737594340029,8.31348,3253.7,3253.2,0.7797]
[1737594340235,8.31348,3253.7,3253.3,0.08103702]
[1737594340650,8.31348,3253.7,3253.2,0.7797]
[1737594340846,8.31348,3253.7,3253.4,0.08103702]
[1737594341157,8.31348,3253.7,3253.5,0.08103702]
[1737594341297,8.31348,3253.7,3253.2,0.7797]
[1737594341298,7.179273,3253.7,3253.2,0.7797]
[1737594341497,3.0737,3253.5,3253.3,0.08067968]
[1737594341695,3.07353,3253.6,3253.2,0.7797]
[1737594342000,3.07353,3253.6,3253.3,0.08067968]
[1737594342217,3.07353,3253.6,3253.2,0.7797]
[1737594342416,8.31349,3253.7,3253.4,0.08067968]
[1737594342710,5.24,3253.7,3253.5,0.08067968]
[1737594342895,5.24,3254.0,3253.6,0.7797]
[1737594343100,5.24,3254.0,3253.6,0.8104318]
[1737594343329,5.24,3254.0,3253.7,0.08070039]
[1737594343953,5.24,3254.6,3253.8,0.81043144]
[1737594344112,11.07849,3254.7,3254.1,3.85274]
[1737594344113,8.31249,3254.7,3254.1,3.85274]
[1737594344448,3.07231,3254.9,3254.2,3.07293]
[1737594344449,8.31231,3254.9,3254.2,3.07293]
[1737594344616,5.24,3254.9,3254.3,0.03072467]
[1737594344802,5.24,3254.9,3254.3,3.18383198]
[1737594345202,5.24,3254.9,3254.3,3.15310731]
[1737594345743,8.31229,3254.9,3254.3,3.15310731]
[1737594345943,8.31229,3254.9,3254.3,3.84263423]
[1737594346141,0.7752,3254.8,3254.4,0.0774372]
[1737594346443,0.7752,3254.8,3254.1,0.7797]
[1737594346444,3.07266,3254.5,3254.1,0.7797]
[1737594346805,3.07266,3254.5,3254.2,0.07683683]
[1737594347001,3.07266,3254.5,3254.1,0.7797]
[1737594347002,3.07283,3254.4,3254.1,0.7797]
[1737594347209,3.07283,3254.4,3254.3,0.07683683]
[1737594347408,8.31283,3254.4,3254.1,0.7797]
[1737594347599,8.31283,3254.4,3254.3,0.07683683]
[1737594347946,5.24,3254.4,3254.3,0.07683683]
[1737594348245,5.24,3254.4,3254.1,0.7797]
[1737594348601,5.24,3254.4,3254.2,0.07683683]
[1737594348826,5.24,3254.4,3254.3,3.07285]
[1737594349020,5.24,3254.4,3254.3,4.64163783]
[1737594349635,5.24,3254.4,3254.3,7.64163783]
[1737594353769,3.07145,3255.8,3255.0,3.0]
[1737594354064,3.07148,3255.8,3255.1,0.8118]
[1737594354265,3.07153,3255.7,3255.2,0.388399]
[1737594354437,3.07174,3255.5,3255.1,0.07427561]
[1737594354637,3.07205,3255.2,3254.7,0.8118]
[1737594355533,8.312,3255.3,3254.7,0.8118]
[1737594355534,8.312,3255.3,3254.8,0.07427561]
[1737594355732,8.312,3255.3,3254.7,0.8118]
[1737594356033,8.312,3255.3,3254.9,0.07427561]
[1737594356237,3.07201,3255.2,3254.7,0.8118]
[1737594356578,3.07201,3255.2,3254.4,0.8118]
[1737594356579,3.07221,3255.0,3254.4,0.8118]
[1737594356747,3.07228,3255.0,3254.8,0.07353317]
[1737594356942,3.07228,3255.0,3254.4,0.8118]
[1737594357143,3.07228,3255.0,3254.9,0.07330073]
[1737594357344,3.07228,3255.0,3254.5,0.03072386]
[1737594357668,3.07228,3255.0,3254.4,0.8118]
[1737594357669,3.07228,3255.0,3254.9,0.07330073]
[1737594358283,3.07229,3254.9,3254.4,0.8118]
[1737594358958,5.24,3254.8,3254.1,0.8118]
[1737594359157,8.31245,3254.8,3254.1,0.8118]
[1737594359474,8.31245,3254.8,3254.5,3.07264]
[1737594359475,5.24,3254.8,3254.5,3.07264]
[1737594360175,5.24,3254.8,3254.3,4.15365]
[1737594361539,5.24,3254.8,3254.3,1.0808]
[1737594361746,3.07258,3254.6,3254.3,0.269]
[1737594361957,3.07258,3254.6,3254.1,0.8118]
[1737594362288,3.07258,3254.6,3254.4,35.0]
[1737594362510,3.07266,3254.5,3254.4,35.0]
[1737594362659,3.89166,3254.5,3254.4,35.0]
[1737594363236,0.696421,3254.5,3253.5,3.8118]
[1737594363487,3.07335,3253.8,3253.3,0.269]
[1737594363638,3.0736,3253.6,3252.9,0.8118]
[1737594363839,5.24,3253.6,3253.0,35.0]
[1737594364156,5.24,3253.6,3253.1,0.28543361]
[1737594364355,3.07351,3253.6,3253.1,0.28543361]
[1737594364778,3.07361,3253.5,3253.2,35.0]
[1737594364972,3.8928,3253.3,3253.2,35.0]
[1737594365288,3.07389,3253.2,3253.1,0.28543361]
[1737594365458,8.31389,3253.2,3253.1,0.28543361]
[1737594365789,7.2,3253.1,3252.4,35.28543361]
[1737594365948,3.07416,3253.0,3252.4,38.38745923]
[1737594366494,3.07417,3252.9,3252.4,38.38745923]
[1737594366786,7.2,3253.1,3252.5,0.8055]
[1737594366990,0.269,3256.0,3252.5,0.8055]
[1737594366991,5.24,3253.5,3252.5,4.1216789]
[1737594367149,3.07374,3253.4,3252.6,3.69642368]
[1737594367345,3.07382,3253.3,3252.7,35.0]
[1737594368196,3.07391,3253.2,3252.8,0.28543361]
[1737594368347,3.074,3253.1,3252.8,0.28543361]
[1737594368863,3.07371,3253.4,3252.8,0.28543361]
[1737594368864,3.07386,3253.3,3252.9,35.0]
[1737594369065,3.07371,3253.4,3252.9,35.0]
[1737594369465,3.0738,3253.3,3253.0,0.28543361]
[1737594370188,5.24,3253.2,3253.1,35.0]
[1737594370483,5.24,3253.2,3253.1,35.07443235]
[1737594371068,5.24,3253.2,3253.1,35.35986596]
[1737594371378,5.24,3253.2,3253.1,38.46189158]
[1737594371746,3.07333,3253.8,3253.1,38.46189158]
[1737594371747,5.24,3253.5,3253.1,38.46189158]
[1737594372193,5.24,3253.5,3253.2,0.28543361]
[1737594372394,5.24,3253.5,3253.2,0.90746729]
[1737594372580,5.24,3253.5,3253.3,0.07443235]
[1737594372891,5.24,3253.5,3253.2,0.90746729]
[1737594373092,5.24,3253.5,3253.4,0.07443235]
[1737594373296,5.24,3253.5,3253.2,0.28543361]
[1737594373591,8.3134,3253.8,3253.3,0.28543361]
[1737594373799,5.24,3253.8,3253.3,0.35986596]
[1737594374288,3.07342,3253.7,3253.3,0.35986596]
[1737594375489,3.07352,3253.6,3253.3,0.35986596]
[1737594375670,3.07342,3253.7,3253.3,0.35986596]
[1737594375671,3.0737,3253.4,3253.3,0.35986596]
[1737594375851,3.07361,3253.5,3253.3,0.35986596]
[1737594376057,3.07361,3253.5,3253.3,0.07443235]
[1737594376487,3.07361,3253.5,3253.2,0.28543361]
[1737594376659,3.07361,3253.5,3253.4,0.07443235]
[1737594376982,5.24,3253.8,3253.4,0.07443235]
[1737594376983,3.07351,3253.6,3253.4,0.07443235]
[1737594377177,3.07377,3253.4,3253.2,0.28543361]
[1737594377378,3.8665,3253.3,3253.2,0.28543361]
[1737594378670,3.8665,3253.3,3253.1,35.0]
[1737594378979,3.07389,3253.2,3253.1,35.0]
[1737594379357,3.07427,3252.9,3252.3,0.269]
[1737594379579,3.07427,3252.9,3252.3,0.70375681]
[1737594379791,3.07427,3252.9,3252.7,35.0]
[1737594380991,8.31427,3252.8,3252.1,0.819]
[1737594381192,3.07467,3252.4,3251.8,0.819]
[1737594381403,3.07455,3252.5,3251.8,0.819]